bitfinex-derivatives/quotes_SOLF0:USTF0_20240824
["timestamp","ask_amount","ask_price","bid_price","bid_amount"]
[1724520328678,0.04712724,161.31,161.28,0.04693927]
[1724520330383,0.04712724,161.31,161.3,3.0984]
[1724520330577,0.04712724,161.31,161.28,0.04693927]
[1724520330977,0.04712724,161.31,161.29,3.0985]
[1724520332183,0.04712724,161.31,161.28,0.04693927]
[1724520333379,3.14532724,161.31,161.28,0.04693927]
[1724520333579,0.04712724,161.31,161.28,0.04693927]
[1724520333982,3.0984,161.3,161.28,0.04693927]
[1724520334380,19.05,161.3,161.28,0.04693927]
[1724520334779,3.0986,161.29,161.28,0.04693927]
[1724520335489,3.0988,161.28,161.23,3.0997]
[1724520335781,19.05,161.28,161.21,24.8]
[1724520336384,0.04058485,161.26,161.23,0.04448056]
[1724520337179,19.09058485,161.26,161.23,0.04448056]
[1724520337380,3.0995,161.25,161.23,0.04448056]
[1724520337982,22.18978485,161.26,161.23,0.04448056]
[1724520339089,3.13978485,161.26,161.23,0.04448056]
[1724520340085,0.04058485,161.26,161.23,0.04448056]
[1724520342991,0.04058485,161.26,161.23,3.14418056]
[1724520346808,3.0994,161.25,161.23,0.04448056]
[1724520347001,19.09058485,161.26,161.23,0.04448056]
[1724520347897,19.05,161.24,161.23,0.04448056]
[1724520348304,22.1495,161.24,161.23,0.04448056]
[1724520349101,19.09058485,161.26,161.23,0.04448056]
[1724520349301,0.04058485,161.26,161.23,0.04448056]
[1724520350406,3.13978485,161.26,161.23,0.04448056]
[1724520350609,0.04058485,161.26,161.23,0.04448056]
[1724520352404,3.13978485,161.26,161.23,0.04448056]
[1724520352805,0.04058485,161.26,161.23,3.14418056]
[1724520353004,0.04058485,161.26,161.23,0.04448056]
[1724520353200,0.04058485,161.26,161.25,3.0993]
[1724520355404,2.4577,161.35,161.24,22.19291931]
[1724520355713,2.4577,161.35,161.26,19.05]
[1724520356010,2.4577,161.35,161.26,22.21275237]
[1724520356210,3.0979,161.33,161.28,3.0987]
[1724520356409,0.03948001,161.32,161.29,0.03953215]
[1724520357808,0.03948001,161.32,161.3,3.0982]
[1724520358907,0.03948001,161.32,161.31,3.0982]
[1724520360908,19.05,161.4,161.32,3.0978]
[1724520361913,19.05,161.4,161.34,0.04294367]
[1724520361914,0.03936617,161.38,161.34,0.04294367]
[1724520362303,3.0971,161.37,161.34,0.04294367]
[1724520362512,0.03936617,161.38,161.34,0.04294367]
[1724520363115,3.13636617,161.38,161.34,0.04294367]
[1724520363306,0.03936617,161.38,161.34,0.04294367]
[1724520364012,3.0972,161.37,161.34,0.04294367]
[1724520364215,19.08936617,161.38,161.34,0.04294367]
[1724520364610,3.0974,161.35,161.34,0.04294367]
[1724520364913,19.08936617,161.38,161.34,0.04294367]
[1724520365323,3.0973,161.36,161.34,0.04294367]
[1724520365710,0.03936617,161.38,161.34,0.04294367]
[1724520366117,0.03936617,161.38,161.35,3.0974]
[1724520368112,0.03936617,161.38,161.34,3.14044367]
[1724520368713,0.03936617,161.38,161.34,0.04294367]
[1724520369111,3.0971,161.37,161.34,0.04294367]
[1724520369510,0.03936617,161.38,161.34,0.04294367]
[1724520369913,3.13636617,161.38,161.34,0.04294367]
[1724520370111,0.03936617,161.38,161.34,0.04294367]
[1724520370859,3.0971,161.37,161.34,0.04294367]
[1724520371516,3.0972,161.37,161.34,0.04294367]
[1724520371715,0.03936617,161.38,161.34,0.04294367]
[1724520372621,3.0974,161.35,161.34,0.04294367]
[1724520372823,0.03936617,161.38,161.34,0.04294367]
[1724520373218,3.0971,161.37,161.34,0.04294367]
[1724520373420,0.03936617,161.38,161.34,0.04294367]
[1724520374715,3.13626617,161.38,161.34,0.04294367]
[1724520375116,0.03936617,161.38,161.34,0.04294367]
[1724520376421,3.13626617,161.38,161.34,0.04294367]
[1724520376724,3.13626617,161.38,161.34,3.14054367]
[1724520376925,0.03936617,161.38,161.34,3.14054367]
[1724520377124,0.03936617,161.38,161.34,0.04294367]
[1724520377320,0.03936617,161.38,161.36,3.0971]
[1724520378222,0.03936617,161.38,161.37,19.05]
[1724520378823,0.03936617,161.38,161.37,3.097]
[1724520379817,0.03936617,161.38,161.36,3.0972]
[1724520380227,0.03936617,161.38,161.35,19.05]
[1724520380526,0.03936617,161.38,161.35,22.07103859]
[1724520381524,0.03936617,161.38,161.35,3.02103859]
[1724520383721,0.03936617,161.38,161.35,6.11843859]
[1724520388328,0.03936617,161.38,161.37,19.05]
[1724520388624,3.6855,161.48,161.37,19.05]
[1724520388828,1.2059,161.48,161.44,3.0957]
[1724520389123,2.4455,161.55,161.47,19.05]
[1724520389325,2.4455,161.55,161.41,24.76]
[1724520389326,1.2275,161.55,161.5,22.1444]
[1724520389531,3.0934,161.57,161.5,25.1671588]
[1724520389828,0.04560727,161.54,161.51,0.0463117]
[1724520390024,0.04560727,161.54,161.51,3.1406117]
[1724520391927,0.04560727,161.54,161.51,19.0963117]
[1724520392523,0.04560727,161.54,161.52,3.0942]
[1724520392926,0.04560727,161.54,161.51,19.0963117]
[1724520393128,0.04560727,161.54,161.53,19.05]
[1724520393328,0.04560727,161.54,161.51,19.0963117]
[1724520393529,0.04560727,161.54,161.51,0.0463117]
[1724520393924,19.05,161.52,161.35,67.35265052]
[1724520394122,3.0947,161.5,161.42,3.096]
[1724520394326,1.2872,161.51,161.45,19.05]
[1724520394952,0.04598442,161.5,161.46,0.04578588]
[1724520395735,0.04598442,161.5,161.46,3.14088588]
[1724520396335,0.04598442,161.5,161.49,3.0947]
[1724520396637,0.04598442,161.5,161.47,19.05]
[1724520396833,0.04598442,161.5,161.47,22.1451]
[1724520397031,0.04598442,161.5,161.47,19.05]
[1724520397437,0.04598442,161.5,161.46,0.04578588]
[1724520398568,0.04598442,161.5,161.47,19.05]
[1724520398841,0.04598442,161.5,161.49,22.1447]
[1724520399033,0.04598442,161.5,161.49,19.05]
[1724520399234,0.04598442,161.5,161.47,19.05]
[1724520399431,0.04598442,161.5,161.46,0.04578588]
[1724520399839,3.0951,161.47,161.46,0.04578588]
[1724520400046,19.05,161.49,161.38,45.0437]
[1724520400337,3.0957,161.45,161.39,3.0965]
[1724520400649,19.05,161.49,161.39,3.03124108]
[1724520401035,3.13669623,161.46,161.42,0.04709169]
[1724520401542,3.0956,161.45,161.42,0.04709169]
[1724520401743,0.04129623,161.46,161.42,0.04709169]
[1724520402739,3.0957,161.45,161.42,0.04709169]
[1724520402938,0.04129623,161.46,161.42,0.04709169]
[1724520403241,0.04129623,161.46,161.42,19.09709169]
[1724520403435,0.04129623,161.46,161.43,3.0957]
[1724520403642,0.04129623,161.46,161.42,19.09709169]
[1724520404144,0.04129623,161.46,161.43,3.0958]
[1724520404544,0.04129623,161.46,161.42,22.19309169]
[1724520405545,0.04129623,161.46,161.43,3.0958]
[1724520407142,0.04129623,161.46,161.42,22.19309169]
[1724520407341,0.04129623,161.46,161.42,0.04709169]
[1724520407841,19.05,161.43,161.33,1.2891]
[1724520408167,1.2984,161.42,161.29,1.2742]
[1724520408341,19.05,161.41,161.3,1.01700571]
[1724520408569,1.2984,161.42,161.31,19.05]
[1724520408570,1.2244,161.4,161.31,19.05]
[1724520408846,0.04608033,161.37,161.34,0.02780473]
[1724520410546,3.14308033,161.37,161.34,0.02780473]
[1724520410744,0.04608033,161.37,161.34,0.02780473]
[1724520412148,3.14328033,161.37,161.34,0.02780473]
[1724520412543,0.04608033,161.37,161.34,0.02780473]
[1724520412743,0.04608033,161.37,161.28,43.81]
[1724520413048,19.05,161.35,161.26,19.05]
[1724520413444,19.05,161.35,161.23,22.14363161]
[1724520413645,0.04346828,161.31,161.23,22.14363161]
[1724520414244,3.14166828,161.31,161.23,22.14363161]
[1724520414448,3.14166828,161.31,161.25,3.0993]
[1724520415655,3.14166828,161.31,161.24,3.0995]
[1724520416253,23.83346828,161.31,161.2,3.13215082]
[1724520416458,0.03946274,161.27,161.2,23.79]
[1724520416651,0.03946274,161.27,161.18,24.76]
[1724520416652,0.03946274,161.27,161.22,23.79]
[1724520418149,0.03946274,161.27,161.24,3.0994]
[1724520418554,0.03946274,161.27,161.2,23.79]
[1724520418951,0.03946274,161.27,161.18,51.71715904]
[1724520419357,3.0992,161.26,161.2,3.1002]
[1724520419550,1.2051,161.25,161.2,3.1002]
[1724520421854,1.2051,161.25,161.18,51.71715904]
[1724520422155,0.04110136,161.23,161.18,51.71715904]
[1724520422748,0.04110136,161.23,161.2,3.1001]
[1724520422951,0.04110136,161.23,161.18,51.71715904]
[1724520423846,0.04110136,161.23,161.22,3.0999]
[1724520424956,23.79,161.34,161.25,3.0992]
[1724520425151,23.79,161.34,161.22,23.79]
[1724520425554,1.3074,161.29,161.24,3.0994]
[1724520425952,1.3074,161.29,161.25,0.04110136]
[1724520426158,0.04627358,161.28,161.25,0.04110136]
[1724520426459,1.36437358,161.28,161.25,0.04110136]
[1724520426658,3.099,161.27,161.21,3.1]
[1724520427657,0.04442391,161.26,161.21,3.1]
[1724520428659,0.04442391,161.26,161.22,3.0998]
[1724520431555,3.14362391,161.26,161.21,3.1]
[1724520432161,0.04442391,161.26,161.2,3.1002]
[1724520432357,0.04442391,161.26,161.18,24.76]
[1724520432760,3.0994,161.25,161.2,3.1001]
[1724520433659,3.0994,161.25,161.21,3.1001]
[1724520436857,0.04442391,161.26,161.16,19.04]
[1724520437082,0.04602966,161.23,161.19,19.04]
[1724520437961,0.04602966,161.23,161.22,3.0999]
[1724520439474,0.04602966,161.23,161.15,19.04]
[1724520439666,0.04289759,161.21,161.17,19.04]
[1724520439870,0.04289759,161.21,161.2,3.1003]
[1724520444672,0.04289759,161.21,161.12,1.2506]
[1724520444875,19.04,161.19,161.12,1.2506]
[1724520445067,0.04751011,161.17,161.12,1.2506]
[1724520445471,0.04751011,161.17,161.13,3.1015]
[1724520445866,0.04751011,161.17,161.12,1.2506]
[1724520446071,0.04751011,161.17,161.14,3.1013]
[1724520447570,0.04751011,161.17,161.14,19.04]
[1724520448271,0.04751011,161.17,161.16,3.1011]
[1724520448470,0.04751011,161.17,161.16,22.1411]
[1724520450781,1.2324,161.26,161.17,3.10786099]
[1724520450971,1.2324,161.26,161.19,19.04]
[1724520451376,3.14629853,161.25,161.19,19.04]
[1724520451575,20.2724,161.26,161.15,19.04]
[1724520451783,0.04417292,161.22,161.19,0.04725522]
[1724520452079,3.14427292,161.22,161.19,0.04725522]
[1724520452275,0.04417292,161.22,161.19,0.04725522]
[1724520452476,3.1003,161.21,161.19,0.04725522]
[1724520452899,0.04417292,161.22,161.19,0.04725522]
[1724520453312,3.14417292,161.22,161.19,0.04725522]
[1724520453477,0.04417292,161.22,161.19,0.04725522]
[1724520454073,0.04417292,161.22,161.21,3.1001]
[1724520455277,0.04417292,161.22,161.19,0.04725522]
[1724520455676,3.1003,161.2,161.19,0.04725522]
[1724520456075,0.04417292,161.22,161.19,0.04725522]
[1724520456076,3.1001,161.21,161.19,0.04725522]
[1724520456776,3.14417292,161.22,161.19,0.04725522]
[1724520456981,3.14417292,161.22,161.19,3.14775522]
[1724520458270,0.04417292,161.22,161.2,3.1002]
[1724520458574,0.04417292,161.22,161.19,0.04725522]
[1724520458779,0.04417292,161.22,161.19,3.14765522]
[1724520459083,0.04417292,161.22,161.19,0.04725522]
[1724520460677,0.04417292,161.22,161.2,3.1002]
[1724520461080,0.04417292,161.22,161.19,0.04725522]
[1724520461275,19.08417292,161.22,161.19,0.04725522]
[1724520461479,19.04,161.2,161.19,0.04725522]
[1724520462387,19.04,161.2,161.12,1.2506]
[1724520462577,19.04,161.18,161.12,1.2506]
[1724520463277,19.04,161.2,161.12,1.2506]
[1724520463482,0.04618652,161.18,161.16,3.1009]
[1724520463880,0.04618652,161.18,161.17,3.1009]
[1724520467578,19.04,161.24,161.12,1.2506]
[1724520467786,19.04,161.22,161.12,20.2906]
[1724520468383,3.1004,161.2,161.14,3.1013]
[1724520468588,0.04503129,161.19,161.15,0.03936396]
[1724520469776,0.04503129,161.19,161.15,3.14056396]
[1724520470182,3.14553129,161.19,161.15,0.03936396]
[1724520470389,0.04503129,161.19,161.15,0.03936396]
[1724520470786,3.1007,161.18,161.15,0.03936396]
[1724520470990,3.1007,161.18,161.15,3.14066396]
[1724520472087,6.21181848,161.17,161.15,0.03936396]
[1724520472880,3.11091848,161.17,161.15,0.03936396]
[1724520473189,19.04,161.18,161.15,0.03936396]
[1724520473388,3.1011,161.16,161.15,0.03936396]
[1724520474689,22.1411,161.16,161.15,0.03936396]
[1724520474893,19.04,161.16,161.08,1.2425]
[1724520475083,19.04,161.14,161.08,1.2425]
[1724520475596,19.04,161.09,160.99,2.522]
[1724520475786,0.04269004,161.06,161.0,4.12868324]
[1724520475996,0.04269004,161.06,161.04,3.1032]
[1724520477192,0.04269004,161.06,161.05,3.1032]
[1724520477393,19.04,161.13,161.03,19.04]
[1724520477595,19.04,161.16,161.05,19.04]
[1724520477788,19.04,161.16,161.06,1.2795]
[1724520477992,3.10800372,161.17,161.08,19.04]
[1724520478189,21.5593,161.18,161.08,19.04]
[1724520478495,0.04569185,161.15,161.11,3.14399955]
[1724520479191,3.1017,161.13,161.11,0.04199955]
[1724520479394,19.04,161.14,161.11,0.04199955]
[1724520480283,0.04569185,161.15,161.11,0.04199955]
[1724520480284,19.04,161.12,161.11,0.04199955]
[1724520480486,22.1418,161.12,161.11,0.04199955]
[1724520480692,3.1018,161.12,161.11,0.04199955]
[1724520481314,22.1418,161.12,161.11,0.04199955]
[1724520481893,3.1022,161.1,161.02,1.01903601]
[1724520482092,3.1022,161.1,161.01,19.04]
[1724520482289,3.1022,161.1,161.05,3.103]
[1724520482494,3.1025,161.09,161.05,3.103]
[1724520482890,0.0441375,161.09,161.05,3.103]
[1724520483196,3.1466375,161.09,161.05,3.103]
[1724520483395,3.1466375,161.09,161.04,3.1033]
[1724520483989,3.1026,161.08,161.03,3.1035]
[1724520484699,3.1026,161.08,161.02,3.1037]
[1724520485096,3.1029,161.07,161.02,3.1037]
[1724520485391,3.1029,161.07,160.95,23.82]
[1724520485392,23.82,161.07,160.95,23.82]
[1724520485594,3.1036,161.04,160.95,23.82]
[1724520485791,23.86254799,161.05,160.97,3.1047]
[1724520485997,3.16538702,161.04,160.97,3.1047]
[1724520486305,23.82,161.03,160.93,1.2428]
[1724520486491,0.04567312,161.0,160.93,1.2428]
[1724520486900,23.86567312,161.0,160.93,1.2428]
[1724520487503,26.96987312,161.0,160.94,3.1051]
[1724520488113,26.96987312,161.0,160.93,1.2428]
[1724520488305,23.86567312,161.0,160.92,1.2146]
[1724520488602,23.86567312,161.0,160.89,1.2956]
[1724520488796,0.04587969,160.96,160.93,3.1054]
[1724520489496,0.04587969,160.96,160.91,23.82]
[1724520489698,15.4877,161.35,160.89,5.6578276]
[1724520489699,26.87299335,161.05,160.93,23.82]
[1724520489896,3.1039,161.02,160.93,23.82]
[1724520490093,23.82,161.03,160.92,1.3114]
[1724520490801,0.0476441,160.99,160.96,0.04350059]
[1724520492905,26.9247,160.98,160.96,0.04350059]
[1724520493102,23.82,160.98,160.96,0.04350059]
[1724520493308,0.0476441,160.99,160.96,0.04350059]
[1724520494412,3.1519441,160.99,160.96,0.04350059]
[1724520494904,0.0476441,160.99,160.96,0.04350059]
[1724520495804,0.0476441,160.99,160.96,3.14840059]
[1724520496401,3.1520441,160.99,160.96,0.04350059]
[1724520496802,0.0476441,160.99,160.96,0.04350059]
[1724520497411,3.1519441,160.99,160.96,0.04350059]
[1724520497917,0.0476441,160.99,160.98,3.1045]
[1724520498805,0.0476441,160.99,160.97,3.1045]
[1724520499008,0.0476441,160.99,160.96,0.04350059]
[1724520500211,0.0476441,160.99,160.96,3.14840059]
[1724520500413,0.0476441,160.99,160.96,0.04350059]
[1724520501917,0.0476441,160.99,160.97,3.1047]
[1724520502312,0.0476441,160.99,160.98,3.1045]
[1724520502611,0.0476441,160.99,160.96,0.04350059]
[1724520503614,3.1520441,160.99,160.96,0.04350059]
[1724520503810,0.0476441,160.99,160.96,0.04350059]
[1724520504008,0.0476441,160.99,160.96,3.14820059]
[1724520504709,19.08,160.98,160.96,3.14820059]
[1724520505912,22.1845,160.98,160.96,0.04350059]
[1724520506307,19.08,160.98,160.96,0.04350059]
[1724520507619,19.08,160.98,160.96,3.14840059]
[1724520507911,19.08,160.98,160.96,0.04350059]
[1724520509426,0.0476441,160.99,160.96,0.04350059]
[1724520510222,19.08,160.98,160.96,0.04350059]
[1724520510425,19.08,160.98,160.88,27.91583124]
[1724520510426,19.08,160.98,160.88,24.8]
[1724520510718,19.08,160.97,160.93,3.1054]
[1724520510913,19.08,160.97,160.88,43.88]
[1724520511115,19.08,160.97,160.95,3.105]
[1724520511317,0.04697274,160.98,160.9,19.08]
[1724520511631,0.04273987,160.96,160.9,19.08]
[1724520511813,0.04273987,160.96,160.95,3.1051]
[1724520513615,1.2309,161.07,160.95,3.1051]
[1724520513616,3.16321576,161.17,160.95,19.08]
[1724520513817,22.1824,161.1,160.99,19.08]
[1724520514217,22.1824,161.1,161.04,3.1033]
[1724520514418,19.08,161.1,160.99,19.08]
[1724520514637,0.04374701,161.06,161.04,3.1034]
[1724520514925,0.04374701,161.06,161.03,0.0445543]
[1724520515224,19.12374701,161.06,161.03,0.0445543]
[1724520516425,19.08,161.04,161.03,0.0445543]
[1724520518516,0.04374701,161.06,161.03,0.0445543]
[1724520518718,0.04374701,161.06,161.04,3.1032]
[1724520519122,0.04374701,161.06,161.03,0.0445543]
[1724520519322,0.04374701,161.06,161.05,3.1032]
[1724520520617,0.04374701,161.06,161.03,0.0445543]
[1724520521024,0.04374701,161.06,161.04,3.1032]
[1724520521319,3.1015,161.14,161.05,19.08]
[1724520521522,24.76771873,161.15,160.98,1.2787]
[1724520521726,25.283,161.25,161.09,19.08]
[1724520521727,19.08,161.2,161.09,19.08]
[1724520521925,19.08,161.2,161.11,19.08]
[1724520522230,19.08,161.22,161.11,19.08]
[1724520522427,0.04563128,161.18,161.15,19.12668586]
[1724520522825,0.04563128,161.18,161.17,3.1007]
[1724520523429,0.04563128,161.18,161.16,3.1011]
[1724520523622,0.04563128,161.18,161.15,0.04668586]
[1724520524230,19.12563128,161.18,161.15,0.04668586]
[1724520524933,22.22643128,161.18,161.15,0.04668586]
[1724520525336,19.12563128,161.18,161.15,0.04668586]
[1724520525633,0.04563128,161.18,161.15,0.04668586]
[1724520527235,0.04563128,161.18,161.15,19.12668586]
[1724520527427,2.5238,161.24,161.21,3.1]
[1724520527428,1.2475,161.24,161.21,3.1]
[1724520527738,19.08,161.28,161.19,19.08]
[1724520528031,1.2806,161.31,161.16,20.3229]
[1724520528226,1.2806,161.31,161.23,19.08]
[1724520528428,0.04573714,161.29,161.25,0.04622207]
[1724520529031,3.0991,161.26,161.19,3.1003]
[1724520529232,19.08,161.24,161.17,1.2433]
[1724520529436,19.08,161.28,161.18,19.08]
[1724520529730,22.1785,161.3,161.2,19.08]
[1724520529929,19.08,161.3,161.2,19.08]
[1724520530135,0.04033139,161.27,161.24,3.0994]
[1724520530333,0.04033139,161.27,161.23,0.04083572]
[1724520530635,0.04033139,161.27,161.24,19.08]
[1724520531340,0.04033139,161.27,161.25,3.0993]
[1724520533138,0.04033139,161.27,161.26,3.0991]
[1724520534339,0.04033139,161.27,161.23,0.04083572]
[1724520534937,0.04033139,161.27,161.24,3.0994]
[1724520535843,0.04033139,161.27,161.23,0.04083572]
[1724520536144,0.04033139,161.27,161.24,19.08]
[1724520536436,0.04033139,161.27,161.26,3.0991]
[1724520539242,1.2745,161.4,161.26,19.08]
[1724520539441,19.08,161.38,161.26,19.08]
[1724520539641,19.08,161.38,161.29,3.0984]
[1724520539947,1.2583,161.39,161.29,3.0984]
[1724520539948,19.08,161.36,161.29,3.0984]
[1724520540142,0.04467232,161.34,161.31,0.04348952]
[1724520541944,3.14227232,161.34,161.31,0.04348952]
[1724520543554,0.04467232,161.34,161.31,0.04348952]
[1724520544143,0.04467232,161.34,161.31,19.12348952]
[1724520544542,0.04467232,161.34,161.33,3.0978]
[1724520547846,19.08,161.43,161.32,19.08]
[1724520548050,2.47,161.44,161.36,19.08]
[1724520548944,0.0461813,161.42,161.39,3.0966]
[1724520549148,0.0461813,161.42,161.38,0.04225004]
[1724520549751,0.0461813,161.42,161.38,3.13895004]
[1724520550943,0.0461813,161.42,161.38,0.04225004]
[1724520552348,3.0965,161.41,161.38,0.04225004]
[1724520554048,3.1422813,161.42,161.38,0.04225004]
[1724520554455,19.08,161.4,161.24,3.11720126]
[1724520554647,19.08,161.4,161.3,19.08]
[1724520555154,3.097,161.37,161.33,3.0977]
[1724520555455,0.04246371,161.37,161.33,0.04490321]
[1724520555647,3.0986,161.29,161.24,3.08617217]
[1724520555850,19.08,161.31,161.2,22.9025]
[1724520556154,19.08,161.28,161.2,2.5397]
[1724520556351,19.08,161.33,161.15,1.2828]
[1724520556551,19.08,161.24,161.15,2.5397]
[1724520556752,0.04593612,161.23,161.2,0.03962227]
[1724520563054,3.14563612,161.23,161.2,0.03962227]
[1724520563660,23.8,161.21,161.2,0.03962227]
[1724520564163,3.1004,161.2,161.15,3.1012]
[1724520564664,23.8,161.21,161.14,3.1014]
[1724520564665,3.1005,161.19,161.14,3.1014]
[1724520565055,23.8,161.21,161.1,27.3019]
[1724520565256,0.04589397,161.17,161.14,0.04002101]
[1724520565455,23.8,161.13,161.02,23.8]
[1724520565654,23.8,161.13,161.08,3.1025]
[1724520565956,24.9963,161.19,161.07,26.84903796]
[1724520566160,24.9963,161.19,161.08,2.26864571]
[1724520566354,0.04663604,161.15,161.08,1.25]
[1724520566956,0.04663604,161.15,161.09,1.2835]
[1724520567965,0.04663604,161.15,161.12,3.1017]
[1724520568758,0.04663604,161.15,161.09,1.2835]
[1724520568964,0.04663604,161.15,161.09,25.0835]
[1724520569365,0.04663604,161.15,161.14,3.1015]
[1724520569561,23.84663604,161.15,160.99,24.78]
[1724520569865,0.04424796,161.09,161.01,23.8]
[1724520570060,0.04424796,161.09,161.02,1.0189569]
[1724520570257,0.04424796,161.09,161.04,23.8]
[1724520570464,0.04424796,161.09,161.08,3.1026]
[1724520571359,0.04424796,161.09,161.06,3.1028]
[1724520571764,0.04424796,161.09,161.01,23.8]
[1724520571962,0.04424796,161.09,161.02,1.01898539]
[1724520572569,0.04424796,161.09,161.07,3.1028]
[1724520573465,0.04424796,161.09,161.08,3.1026]
[1724520577875,0.04424796,161.09,161.04,26.85035763]
[1724520578074,0.04424796,161.09,161.0,2.5884]
[1724520578075,0.04424796,161.09,161.02,23.8]
[1724520578479,0.04424796,161.09,161.06,3.1029]
[1724520578779,0.04424796,161.09,161.02,23.8]
[1724520578978,0.04424796,161.09,161.07,3.1026]
[1724520579275,0.04424796,161.09,161.02,23.8]
[1724520579479,0.04424796,161.09,161.03,1.01898375]
[1724520580274,0.04424796,161.09,161.08,3.1026]
[1724520583581,0.04424796,161.09,161.04,3.11955925]
[1724520583782,0.04424796,161.09,161.01,1.2875]
[1724520583977,0.04424796,161.09,161.02,1.01909558]
[1724520584480,0.04424796,161.09,161.01,1.2875]
[1724520584481,19.10424796,161.09,161.01,1.2875]
[1724520585384,0.04424796,161.09,161.01,20.3475]
[1724520585778,0.04424796,161.09,161.08,3.1026]
[1724520590386,1.3085,161.17,161.13,3.1015]
[1724520590785,1.3085,161.17,161.1,19.06]
[1724520590983,19.06,161.2,161.14,3.1013]
[1724520591386,0.04003911,161.19,161.15,0.04237191]
[1724520592280,19.10003911,161.19,161.15,0.04237191]
[1724520592587,22.20073911,161.19,161.15,0.04237191]
[1724520592888,19.06,161.17,161.15,0.04237191]
[1724520593285,22.1609,161.17,161.15,0.04237191]
[1724520593487,22.1609,161.17,161.12,3.1018]
[1724520593682,19.06,161.15,161.12,3.1018]
[1724520594081,19.06,161.15,161.05,19.06]
[1724520594284,19.06,161.15,161.01,226.2875]
[1724520594285,19.06,161.15,161.03,19.06]
[1724520594489,0.04654131,161.1,161.04,4.12101409]
[1724520594689,0.04654131,161.1,161.04,3.10204621]
[1724520595286,0.04654131,161.1,161.09,3.1023]
[1724520598189,19.06,161.19,161.14,3.1013]
[1724520598496,19.06,161.19,161.1,19.06]
[1724520599294,0.04610547,161.16,161.13,0.04453648]
[1724520599593,0.04610547,161.16,161.15,3.1013]
[1724520600311,0.04610547,161.16,161.13,0.04453648]
[1724520600993,19.06,161.15,161.13,0.04453648]
[1724520601195,19.06,161.15,161.04,19.06]
[1724520601408,23.4351,161.14,161.08,3.1025]
[1724520601794,23.4351,161.14,161.04,19.06]
[1724520602094,20.3335,161.14,161.09,3.1024]
[1724520602393,0.04550739,161.13,161.09,3.1024]
[1724520603497,0.04550739,161.13,161.04,3.04514377]
[1724520603691,0.04550739,161.13,161.05,23.81]
[1724520603891,0.04056999,161.11,161.05,26.85638402]
[1724520604691,0.04056999,161.11,161.09,3.1022]
[1724520605895,0.04056999,161.11,161.1,3.1022]
[1724520608592,0.04056999,161.11,161.03,1.2622]
[1724520608796,0.04056999,161.11,161.02,25.0597]
[1724520609003,0.04056999,161.11,161.07,3.1028]
[1724520609408,0.04056999,161.11,161.02,25.0597]
[1724520609606,0.04056999,161.11,161.03,1.01904107]
[1724520609803,0.04056999,161.11,161.05,23.81]
[1724520610002,0.04056999,161.11,161.06,3.14002351]
[1724520610504,0.04056999,161.11,161.1,3.1022]
[1724520611708,0.04056999,161.11,161.02,25.0597]
[1724520612305,0.04056999,161.11,161.07,3.1028]
[1724520612909,23.81,161.09,160.97,23.81]
[1724520613103,0.0460376,161.06,160.97,23.81]
[1724520613305,0.0460376,161.06,161.02,3.1036]
[1724520615208,6.1976,161.28,161.04,23.81]
[1724520615409,23.81,161.17,161.05,1.2741]
[1724520615603,23.81,161.15,161.05,1.2741]
[1724520615805,3.1015,161.14,161.08,3.1025]
[1724520616203,1.24369823,161.13,161.09,3.14468904]
[1724520616406,1.24369823,161.13,161.09,0.04238904]
[1724520616705,0.04739823,161.13,161.09,23.85238904]
[1724520617010,1.2052,161.21,161.11,23.81]
[1724520617208,1.2298,161.23,161.13,23.81]
[1724520617409,1.2298,161.23,161.15,23.81]
[1724520617717,1.2298,161.23,161.08,23.81]
[1724520617718,23.81,161.28,161.18,23.81]
[1724520617903,3.7902,161.3,161.21,23.81]
[1724520618103,0.04162902,161.27,161.24,3.13969412]
[1724520618612,23.81,161.25,161.24,0.04029412]
[1724520618812,23.81,161.25,161.14,1.2287]
[1724520619007,23.81,161.23,161.14,1.2287]
[1724520619405,1.2298,161.22,161.16,3.1011]
[1724520619708,0.04634603,161.21,161.17,0.04364992]